lending/lending_fUSD_20250122
["ID","MTS","AMOUNT","RATE_DAILY","PERIOD"]
[349934543,1737519046651,-500.0,0.00021033,2]
[349934544,1737519046660,-500.0,0.00021033,2]
[349934545,1737519046669,-500.0,0.00021033,2]
[349934546,1737519046679,-901.79,0.00021033,2]
[349934547,1737519046689,-1063.04,0.00021033,2]
[349934548,1737519046699,-500.0,0.00021033,2]
[349934549,1737519046708,-257.29923619,0.00021033,2]
[349934550,1737519046717,-742.19,0.00021033,2]
[349934551,1737519046727,-500.0,0.00021033,2]
[349934552,1737519046736,-500.0,0.00021033,2]
[349934553,1737519046745,-500.0,0.00021033,2]
[349934554,1737519046755,-527.08,0.00021033,2]
[349934555,1737519046764,-677.34,0.00021033,2]
[349934556,1737519046774,-1101.49,0.00021033,2]
[349934557,1737519046783,-500.0,0.00021033,2]
[349934558,1737519046794,-500.0,0.00021033,2]
[349934559,1737519046803,-500.0,0.00021033,2]
[349934560,1737519046812,-500.0,0.00021033,2]
[349934561,1737519046821,-1132.3,0.00021033,2]
[349934562,1737519046831,-1303.98,0.00021033,2]
[349934563,1737519046840,-278.82789808,0.00021033,2]
[349934564,1737519046850,-500.0,0.00021033,2]
[349934565,1737519046860,-500.0,0.00021033,2]
[349934566,1737519046869,-500.0,0.00021033,2]
[349934567,1737519046878,-560.82,0.00021033,2]
[349934568,1737519046887,-1426.618997,0.00021033,2]
[349934569,1737519046897,-657.83,0.00021033,2]
[349934570,1737519046907,-158.184905,0.00021033,2]
[349934571,1737519046916,-500.0,0.00021033,2]
[349934572,1737519046926,-500.0,0.00021033,2]
[349934573,1737519046935,-759.76,0.00021033,2]
[349934574,1737519046944,-500.0,0.00021033,2]
[349934575,1737519046953,-500.0,0.00021033,2]
[349934576,1737519046962,-642.73,0.00021033,2]
[349934577,1737519046971,-886.24,0.00021033,2]
[349934578,1737519046980,-500.0,0.00021033,2]
[349934579,1737519046989,-1401.82,0.00021033,2]
[349934580,1737519046998,-1381.18,0.00021033,2]
[349934581,1737519047008,-500.0,0.00021033,2]
[349934582,1737519047016,-1699.66,0.00021033,2]
[349934583,1737519047026,-500.0,0.00021033,2]
[349934584,1737519047035,-612.05,0.00021033,2]
[349934585,1737519047044,-500.0,0.00021033,2]
[349934586,1737519047054,-1048.26,0.00021033,2]
[349934587,1737519047063,-438.03285533,0.00021033,2]
[349934588,1737519047072,-500.0,0.00021033,2]
[349934589,1737519047081,-500.0,0.00021033,2]
[349934590,1737519047090,-244.83237656,0.00021033,2]
[349934591,1737519047100,-1743.44,0.00021033,2]
[349934592,1737519047109,-500.0,0.00021033,2]
[349934593,1737519047119,-362.55632567,0.00021033,2]
[349934594,1737519047128,-500.0,0.00021033,2]
[349934595,1737519047137,-1052.92,0.00021033,2]
[349934596,1737519047146,-500.0,0.00021033,2]
[349934597,1737519047155,-500.0,0.00021033,2]
[349934598,1737519047164,-500.0,0.00021033,2]
[349934599,1737519047174,-500.0,0.00021033,2]
[349934600,1737519047183,-500.0,0.00021033,2]
[349934601,1737519047192,-500.0,0.00021033,2]
[349934602,1737519047203,-500.0,0.00021033,2]
[349934603,1737519047212,-500.0,0.00021033,2]
[349934604,1737519047222,-526.6330868,0.00021033,2]
[349934605,1737519047231,-979.15,0.00021033,2]
[349934606,1737519047241,-490.60216586,0.00021033,2]
[349934607,1737519047250,-500.0,0.00021033,2]
[349934608,1737519047259,-500.0,0.00021033,2]
[349934609,1737519047268,-500.0,0.00021033,2]
[349934610,1737519047278,-500.0,0.00021033,2]
[349934611,1737519047287,-628.5,0.00021033,2]
[349934612,1737519047296,-1211.75,0.00021033,2]
[349934613,1737519047306,-872.58,0.00021033,2]
[349934614,1737519047316,-500.0,0.00021033,2]
[349934615,1737519047325,-704.43,0.00021033,2]
[349934616,1737519047335,-500.0,0.00021033,2]
[349934617,1737519047344,-647.72,0.00021033,2]
[349934618,1737519047353,-192.49342311,0.00021033,2]
[349934619,1737519047363,-2191.83,0.00021033,2]
[349934620,1737519047372,-1079.37,0.00021033,2]
[349934621,1737519047381,-500.0,0.00021033,2]
[349934622,1737519047390,-600.89,0.00021033,2]
[349934623,1737519047400,-1175.7,0.00021033,2]
[349934624,1737519047409,-500.0,0.00021033,2]
[349934625,1737519047418,-500.0,0.00021033,2]
[349934626,1737519047427,-818.31,0.00021033,2]
[349934627,1737519047437,-811.78,0.00021033,2]
[349934628,1737519047446,-500.0,0.00021033,2]
[349934629,1737519047456,-769.81,0.00021033,2]
[349934630,1737519047466,-500.0,0.00021033,2]
[349934631,1737519047475,-1259.86,0.00021033,2]
[349934632,1737519047485,-500.0,0.00021033,2]
[349934633,1737519047494,-873.38,0.00021033,2]
[349934634,1737519047504,-1207.45,0.00021033,2]
[349934635,1737519047513,-1805.97,0.00021033,2]
[349934636,1737519047523,-2247.66,0.00021033,2]
[349934637,1737519047532,-923.82,0.00021033,2]
[349934638,1737519047542,-956.75,0.00021033,2]
[349934639,1737519047551,-500.0,0.00021033,2]
[349934640,1737519047560,-500.0,0.00021033,2]
[349934641,1737519047570,-689.23,0.00021033,2]
[349934642,1737519047580,-500.0,0.00021033,2]
[349934643,1737519047589,-500.0,0.00021033,2]
[349934644,1737519047599,-616.92,0.00021033,2]
[349934645,1737519047611,-500.0,0.00021033,2]
[349934646,1737519047621,-500.0,0.00021033,2]
[349934647,1737519047631,-2485.36,0.00021033,2]
[349934648,1737519047641,-500.0,0.00021033,2]
[349934649,1737519047651,-795.05,0.00021033,2]
[349934650,1737519047661,-966.88,0.00021033,2]
[349934651,1737519047671,-500.0,0.00021033,2]
[349934652,1737519047681,-500.0,0.00021033,2]
[349934653,1737519047691,-676.75,0.00021033,2]
[349934654,1737519047700,-500.0,0.00021033,2]
[349934655,1737519047710,-500.0,0.00021033,2]
[349934656,1737519047720,-872.56,0.00021033,2]
[349934657,1737519047729,-500.0,0.00021033,2]
[349934658,1737519047739,-500.0,0.00021033,2]
[349934659,1737519047749,-2567.24,0.00021033,2]
[349934660,1737519047758,-500.0,0.00021033,2]
[349934661,1737519047767,-532.25,0.00021033,2]
[349934662,1737519047777,-500.0,0.00021033,2]
[349934663,1737519047787,-593.48322256,0.00021033,2]
[349934664,1737519047796,-508.35916156,0.00021033,2]
[349934665,1737519047806,-504.93303854,0.00021033,2]
[349934666,1737519047816,-726.7,0.00021033,2]
[349934667,1737519047825,-2468.96,0.00021033,2]
[349934668,1737519047834,-500.0,0.00021033,2]
[349934669,1737519047844,-500.0,0.00021033,2]
[349934670,1737519047853,-500.0,0.00021033,2]
[349934671,1737519047863,-503.60834602,0.00021033,2]
[349934672,1737519047872,-474.19959691,0.00021033,2]
[349934673,1737519047882,-545.47,0.00021033,2]
[349934674,1737519047891,-557.90230457,0.00021033,2]
[349934675,1737519047907,-142.99769543,0.00021033,2]
[349934676,1737519047916,-2226.79,0.00021033,2]
[349934677,1737519047925,-500.0,0.00021033,2]
[349934678,1737519047934,-500.0,0.00021033,2]
[349934679,1737519047944,-940.07,0.00021033,2]
[349934680,1737519047953,-500.0,0.00021033,2]
[349934681,1737519047963,-500.0,0.00021033,2]
[349934682,1737519047972,-613.51,0.00021033,2]
[349934683,1737519047982,-3595.95,0.00021033,2]
[349934684,1737519047992,-500.0,0.00021033,2]
[349934685,1737519048001,-516.09264063,0.00021033,2]
[349934686,1737519048010,-2688.38,0.00021033,2]
[349934687,1737519048019,-512.53056353,0.00021033,2]
[349934688,1737519048029,-2702.8,0.00021033,2]
[349934689,1737519048039,-43.23858946,0.00021033,2]
[349934690,1737519048052,-456.76141054,0.00021033,2]
[349934691,1737519048061,-727.29,0.00021033,2]
[349934692,1737519048071,-500.0,0.00021033,2]
[349934693,1737519048080,-500.0,0.00021033,2]
[349934694,1737519048090,-4192.67,0.00021033,2]
[349934695,1737519048100,-1502.92,0.00021033,2]
[349934696,1737519048110,-500.0,0.00021033,2]
[349934697,1737519048120,-1080.58,0.00021033,2]
[349934698,1737519048130,-500.0,0.00021033,2]
[349934699,1737519048139,-2467.76,0.00021033,2]
[349934700,1737519048150,-500.0,0.00021033,2]
[349934701,1737519048160,-500.0,0.00021033,2]
[349934702,1737519048170,-954.66,0.00021033,2]
[349934703,1737519048179,-1175.26,0.00021033,2]
[349934704,1737519048189,-500.0,0.00021033,2]
[349934705,1737519048198,-500.0,0.00021033,2]
[349934706,1737519048207,-2418.94514449,0.00021033,2]
[349934707,1737519048245,-760.88485551,0.00021033,2]
[349934708,1737519048254,-4405.47,0.00021033,2]
[349934709,1737519048264,-500.0,0.00021033,2]
[349934710,1737519048273,-854.44,0.00021033,2]
[349934711,1737519048283,-500.0,0.00021033,2]
[349934712,1737519048293,-1289.14,0.00021033,2]
[349934713,1737519048302,-2303.52,0.00021033,2]
[349934714,1737519048311,-500.0,0.00021033,2]
[349934715,1737519048321,-500.0,0.00021033,2]
[349934716,1737519048330,-530.60900309,0.00021033,2]
[349934717,1737519048340,-500.0,0.00021033,2]
[349934718,1737519048350,-814.27,0.00021033,2]
[349934719,1737519048534,-500.0,0.00021033,2]
[349934720,1737519048544,-500.0,0.00021033,2]
[349934721,1737519048554,-500.0,0.00021033,2]
[349934722,1737519048564,-500.0,0.00021033,2]
[349934723,1737519048574,-500.0,0.00021033,2]
[349934724,1737519048584,-500.0,0.00021033,2]
[349934725,1737519048594,-359.92589614,0.00021033,2]
[349934726,1737519048605,-500.0,0.00021033,2]
[349934727,1737519048615,-2301.23,0.00021033,2]
[349934728,1737519048624,-500.0,0.00021033,2]
[349934729,1737519048634,-500.0,0.00021033,2]
[349934730,1737519048645,-500.0,0.00021033,2]
[349934731,1737519048655,-500.0,0.00021033,2]
[349934732,1737519048665,-500.0,0.00021033,2]
[349934733,1737519048675,-500.0,0.00021034,2]
[349934734,1737519048685,-500.0,0.00021034,2]
[349934735,1737519048695,-500.0,0.00021034,2]
[349934736,1737519048705,-500.0,0.00021034,2]
[349934737,1737519048715,-500.0,0.00021034,2]
[349934738,1737519048724,-500.0,0.00021034,2]
[349934739,1737519048734,-500.0,0.00021034,2]
[349934740,1737519048744,-500.0,0.00021034,2]
[349934741,1737519048753,-500.0,0.00021034,2]
[349934742,1737519048764,-500.0,0.00021034,2]
[349934743,1737519048774,-223.83576901,0.00021034,2]
[349934744,1737519048784,-500.0,0.00021034,2]
[349934745,1737519048794,-575.94,0.00021034,2]
[349934746,1737519048804,-1120.85,0.00021034,2]
[349934747,1737519048814,-500.0,0.00021034,2]
[349934748,1737519048824,-500.0,0.00021034,2]
[349934749,1737519048834,-500.0,0.00021034,2]
[349934750,1737519048844,-1207.82,0.00021034,2]
[349934751,1737519048854,-751.0,0.00021034,2]
[349934752,1737519048863,-500.0,0.00021034,2]
[349934753,1737519048873,-883.63,0.00021034,2]
[349934754,1737519048883,-500.0,0.00021034,2]
[349934755,1737519048893,-1181.29,0.00021034,2]
[349934756,1737519048903,-727.92,0.00021034,2]
[349934757,1737519048913,-956.55,0.00021034,2]
[349934758,1737519048923,-500.0,0.00021034,2]
[349934759,1737519048932,-972.6,0.00021034,2]
[349934760,1737519048942,-678.04,0.00021034,2]
[349934761,1737519048952,-645.49,0.00021034,2]
[349934762,1737519048962,-500.0,0.00021034,2]
[349934763,1737519048972,-500.0,0.00021034,2]
[349934764,1737519048982,-500.0,0.00021034,2]
[349934765,1737519048991,-1148.59,0.00021034,2]
[349934766,1737519049001,-500.0,0.00021034,2]
[349934767,1737519049010,-500.0,0.00021034,2]
[349934768,1737519049022,-500.0,0.00021034,2]
[349934769,1737519049032,-654.44,0.00021034,2]
[349934770,1737519049042,-1020.04,0.00021034,2]
[349934771,1737519049051,-836.35,0.00021034,2]
[349934772,1737519049061,-500.0,0.00021034,2]
[349934773,1737519049070,-284.83211577,0.00021034,2]
[349934774,1737519049079,-500.0,0.00021034,2]
[349934775,1737519049089,-500.0,0.00021034,2]
[349934776,1737519049098,-500.0,0.00021034,2]
[349934777,1737519049107,-500.0,0.00021034,2]
[349934778,1737519049117,-500.0,0.00021034,2]
[349934779,1737519049127,-500.0,0.00021034,2]
[349934780,1737519049136,-500.0,0.00021034,2]
[349934781,1737519049146,-500.0,0.00021034,2]
[349934782,1737519049156,-500.0,0.00021034,2]
[349934783,1737519049165,-571.0,0.00021034,2]
[349934784,1737519049175,-500.0,0.00021034,2]
[349934785,1737519049184,-1253.51,0.00021034,2]
[349934786,1737519049194,-1054.55,0.00021034,2]
[349934787,1737519049205,-1297.46,0.00021034,2]
[349934788,1737519049215,-1043.06,0.00021034,2]
[349934789,1737519049225,-634.48766436,0.00021034,2]
[349934790,1737519049234,-500.0,0.00021034,2]
[349934791,1737519049244,-500.0,0.00021034,2]
[349934792,1737519049254,-500.0,0.00021034,2]
[349934793,1737519049264,-500.0,0.00021034,2]
[349934794,1737519049274,-537.72193533,0.00021034,2]
[349934795,1737519049283,-500.0,0.00021034,2]
[349934796,1737519049293,-500.0,0.00021034,2]
[349934797,1737519049302,-500.0,0.00021034,2]
[349934798,1737519049312,-711.33,0.00021034,2]
[349934799,1737519049322,-500.0,0.00021034,2]
[349934800,1737519049331,-500.0,0.00021034,2]
[349934801,1737519049341,-500.0,0.00021034,2]
[349934802,1737519049351,-500.0,0.00021034,2]
[349934803,1737519049361,-765.02,0.00021034,2]
[349934804,1737519049374,-500.0,0.00021034,2]
[349934805,1737519049383,-860.6,0.00021034,2]
[349934806,1737519049393,-561.69,0.00021034,2]
[349934807,1737519049403,-885.48,0.00021034,2]
[349934808,1737519049413,-500.0,0.00021034,2]
[349934809,1737519049422,-1276.19,0.00021034,2]
[349934810,1737519049431,-500.0,0.00021039,2]
[349934811,1737519049442,-500.0,0.00021039,2]
[349934812,1737519049452,-637.6949061,0.00021039,2]
[349934813,1737519049462,-500.0,0.00021039,2]
[349934814,1737519049471,-500.0,0.00021039,2]
[349934815,1737519049481,-500.0,0.00021039,2]
[349934816,1737519049490,-500.0,0.00021039,2]
[349934817,1737519049500,-155.1019774,0.00021039,2]
[349934818,1737519049509,-500.0,0.00021039,2]
[349934819,1737519049519,-500.0,0.00021039,2]
[349934820,1737519049528,-500.0,0.00021039,2]
[349934821,1737519049538,-500.0,0.00021039,2]
[349934822,1737519049548,-450.97596156,0.00021039,2]
[349934823,1737519049558,-500.0,0.00021039,2]
[349934824,1737519049567,-506.25064628,0.00021039,2]
[349934825,1737519049577,-500.0,0.00021039,2]
[349934826,1737519049586,-500.0,0.00021039,2]
[349934827,1737519049596,-500.0,0.00021039,2]
[349934828,1737519049607,-500.0,0.00021039,2]
[349934829,1737519049616,-500.0,0.00021039,2]
[349934830,1737519049626,-500.0,0.00021039,2]
[349934831,1737519049635,-500.0,0.00021039,2]
[349934832,1737519049645,-500.0,0.00021039,2]
[349934833,1737519049655,-500.0,0.00021039,2]
[349934834,1737519049665,-531.35475704,0.00021039,2]
[349934835,1737519049674,-519.80445999,0.00021039,2]
[349934836,1737519049685,-500.0,0.00021039,2]
[349934837,1737519049696,-500.0,0.00021039,2]
[349934838,1737519049705,-500.0,0.00021039,2]
[349934839,1737519049715,-230.17673455,0.00021039,2]
[349934840,1737519049724,-500.0,0.00021039,2]
[349934841,1737519049734,-500.0,0.00021039,2]
[349934842,1737519049743,-500.0,0.00021039,2]
[349934843,1737519049753,-500.0,0.00021039,2]
[349934844,1737519049763,-550.28858612,0.00021039,2]
[349934845,1737519049773,-500.0,0.00021039,2]
[349934846,1737519049783,-517.57247247,0.00021039,2]
[349934847,1737519049793,-501.45164206,0.00021039,2]
[349934848,1737519049802,-531.6551591,0.00021039,2]
[349934849,1737519049812,-504.79271626,0.00021039,2]
[349934850,1737519049822,-460.0,0.00021039,2]
[349934851,1737519049832,-504.74584264,0.00021039,2]
[349934852,1737519049841,-500.0,0.00021039,2]
[349934853,1737519049851,-500.0,0.00021039,2]
[349934854,1737519049861,-500.0,0.00021039,2]
[349934855,1737519049871,-506.30077019,0.00021039,2]
[349934856,1737519049880,-500.0,0.00021039,2]
[349934857,1737519049890,-503.137923,0.00021039,2]
[349934858,1737519049900,-500.0,0.00021039,2]
[349934859,1737519049910,-500.0,0.00021039,2]
[349934860,1737519049920,-501.34505423,0.00021039,2]
[349934861,1737519049929,-341.76645373,0.00021039,2]
[349934862,1737519049939,-501.86880233,0.00021039,2]
[349934863,1737519049948,-500.0,0.00021039,2]
[349934864,1737519049958,-500.0,0.00021039,2]
[349934865,1737519049967,-213.98416567,0.00021039,2]
[349934866,1737519049977,-502.08913509,0.00021039,2]
[349934867,1737519049988,-505.14550335,0.00021039,2]
[349934868,1737519049998,-500.0,0.00021039,2]
[349934869,1737519050007,-500.0,0.00021039,2]
[349934870,1737519050016,-504.32622381,0.00021039,2]
[349934871,1737519050026,-500.0,0.00021039,2]
[349934872,1737519050036,-500.0,0.00021039,2]
[349934873,1737519050046,-505.63220965,0.00021039,2]
[349934874,1737519050055,-500.0,0.00021039,2]
[349934875,1737519050065,-500.0,0.00021039,2]
[349934876,1737519050075,-507.88870624,0.00021039,2]
[349934877,1737519050085,-581.48,0.00021039,2]
[349934878,1737519050094,-500.0,0.0002104,2]
[349934879,1737519050104,-500.0,0.0002104,2]
[349934880,1737519050113,-500.0,0.0002104,2]
[349934881,1737519050122,-500.0,0.0002104,2]
[349934882,1737519050132,-500.0,0.0002104,2]
[349934883,1737519050142,-694.18,0.0002104,2]
[349934884,1737519050151,-500.0,0.0002104,2]
[349934885,1737519050161,-500.0,0.0002104,2]
[349934886,1737519050171,-152.67741428,0.0002104,2]
[349934887,1737519050180,-500.0,0.0002104,2]
[349934888,1737519050190,-500.0,0.0002104,2]
[349934889,1737519050199,-500.0,0.0002104,2]
[349934890,1737519050209,-500.0,0.0002104,2]
[349934891,1737519050219,-500.0,0.0002104,2]
[349934892,1737519050229,-500.0,0.0002104,2]
[349934893,1737519050238,-500.0,0.0002104,2]
[349934894,1737519050247,-500.0,0.0002104,2]
[349934895,1737519050257,-500.0,0.0002104,2]
[349934896,1737519050267,-500.0,0.0002104,2]
[349934897,1737519050276,-761.15,0.0002104,2]
[349934898,1737519050286,-604.34,0.0002104,2]
[349934899,1737519050295,-500.0,0.0002104,2]
[349934900,1737519050305,-500.0,0.0002104,2]
[349934901,1737519050314,-500.0,0.0002104,2]
[349934902,1737519050324,-500.0,0.0002104,2]
[349934903,1737519050333,-500.0,0.0002104,2]
[349934904,1737519050342,-500.0,0.0002104,2]
[349934905,1737519050352,-500.0,0.0002104,2]
[349934906,1737519050361,-500.0,0.0002104,2]
[349934907,1737519050370,-361.65277479,0.0002104,2]
[349934908,1737519050379,-500.0,0.0002104,2]
[349934909,1737519050389,-500.0,0.0002104,2]
[349934910,1737519050400,-500.0,0.0002104,2]
[349934911,1737519050409,-500.0,0.0002104,2]
[349934912,1737519050418,-537.50521776,0.0002104,2]
[349934913,1737519050428,-500.0,0.0002104,2]
[349934914,1737519050438,-500.0,0.0002104,2]
[349934915,1737519050447,-500.0,0.0002104,2]
[349934916,1737519050457,-500.0,0.0002104,2]
[349934917,1737519050467,-500.0,0.0002104,2]
[349934918,1737519050476,-500.0,0.0002104,2]
[349934919,1737519050486,-500.0,0.0002104,2]
[349934920,1737519050496,-519.96483888,0.0002104,2]
[349934921,1737519050506,-500.0,0.0002104,2]
[349934922,1737519050516,-596.83810551,0.0002104,2]
[349934923,1737519050525,-699.89,0.0002104,2]
[349934924,1737519050534,-500.0,0.0002104,2]
[349934925,1737519050544,-492.19936371,0.00021071,2]
[349934926,1737519050553,-500.0,0.00021178,2]
[349934927,1737519050563,-874.78,0.00021178,2]
[349934928,1737519050572,-150.0,0.00021178,2]
[349934929,1737519050582,-150.0,0.00021178,2]
[349934930,1737519050591,-150.0,0.00021178,2]
[349934931,1737519050600,-150.0,0.00021178,2]
[349934932,1737519050615,-150.0,0.00021178,2]
[349934933,1737519050629,-150.0,0.00021178,2]
[349934934,1737519050638,-150.0,0.00021178,2]
[349934935,1737519050649,-150.0,0.00021178,2]
[349934936,1737519050659,-150.0,0.00021178,2]
[349934937,1737519050669,-150.0,0.00021178,2]
[349934938,1737519050679,-492.19936371,0.00021189,2]
[349934939,1737519050690,-3000.0,0.000213,2]
[349934940,1737519050700,-759.36,0.00021306,2]
[349934941,1737519050710,-500.0,0.00021306,2]
[349934942,1737519050719,-500.0,0.00021306,2]
[349934943,1737519050729,-839.58,0.00021306,2]
[349934944,1737519050739,-3460.53,0.00021306,2]
[349934945,1737519050748,-1366.62,0.00021306,2]
[349934946,1737519050758,-1129.08,0.00021306,2]
[349934947,1737519050768,-1064.71,0.00021306,2]
[349934948,1737519050777,-1576.04,0.00021306,2]
[349934949,1737519050787,-814.84,0.00021306,2]
[349934950,1737519050796,-1162.26241102,0.00021306,2]
[349934951,1737519050811,-700.27758898,0.00021306,2]
[349934952,1737519050821,-707.45,0.00021306,2]
[349934953,1737519050831,-479.1347687,0.00021306,2]
[349934954,1737519050850,-550.17098608,0.00021306,2]
[349934955,1737519050867,-1395.271709,0.00021032,2]
[349934956,1737519050877,-1165.04424522,0.00021306,2]
[349934957,1737519050886,-1375.77,0.00021306,2]
[349934958,1737519050896,-562.01,0.00021306,2]
[349934959,1737519050905,-3091.58129636,0.00021306,2]
[349934960,1737519050917,-527.98870364,0.00021306,2]
[349934961,1737519050927,-461.06412046,0.00021306,2]
[349934962,1737519050942,-604.61362801,0.00021306,2]
[349934964,1737519075919,155.31,0.00010137,2]
[349934967,1737519557533,206.00814261,0.00024,120]
[349934997,1737520232002,-579.36353194,0.00015,2]
[349934998,1737520232065,-2509.02979265,0.00015,2]
[349934999,1737520232074,-599.93201168,0.000159,2]
[349935000,1737520232084,-3286.5276418,0.00016,2]
[349935001,1737520232095,-528.59,0.00018052,2]
[349935002,1737520232106,-500.0,0.00019164,2]
[349935003,1737520232115,-295.04,0.00019313,2]
[349935004,1737520232125,-494.78,0.00019508,2]
[349935005,1737520232136,-300.0,0.00019677,2]
[349935006,1737520232145,-19037.47085654,0.00019678,2]
[349935007,1737520232176,-891.82953899,0.00019678,2]
[349935008,1737520232188,-235.16170368,0.000199,2]
[349935009,1737520232401,-65.5480465,0.00019919,2]
[349935010,1737520232432,-1554.33730005,0.00019919,2]
[349935011,1737520232442,-500.0,0.00019999,2]
[349935012,1737520232451,-1044.23,0.00019999,2]
[349935013,1737520232461,-11.2990763,0.00019999,2]
[349935014,1737520232472,-500.0,0.00019999,2]
[349935015,1737520232484,-53.5209237,0.00019999,2]
[349935016,1737520232494,-642.02893037,0.00019999,2]
[349935017,1737520232506,-488.26106963,0.00019999,2]
[349935018,1737520232515,-500.0,0.00019999,2]
[349935019,1737520232524,-1240.14,0.00019999,2]
[349935020,1737520232534,-1216.73,0.00019999,2]
[349935021,1737520232543,-500.0,0.00019999,2]
[349935022,1737520232553,-913.99,0.00019999,2]
[349935023,1737520232562,-1455.55,0.00019999,2]
[349935024,1737520232572,-818.59,0.00019999,2]
[349935025,1737520232582,-1154.05,0.00019999,2]
[349935026,1737520232591,-1723.12,0.00019999,2]
[349935027,1737520232600,-356.56893037,0.00019999,2]
[349935028,1737520232615,-397.92779334,0.00019999,2]
[349935029,1737520232627,-336.50062,0.00019999,2]
[349935030,1737520232638,-1171.02265629,0.00019999,2]
[349935031,1737520232648,-500.0,0.00019999,2]
[349935032,1737520232658,-2285.73,0.00019999,2]
[349935033,1737520232667,-500.0,0.00019999,2]
[349935034,1737520232677,-1102.19,0.00019999,2]
[349935035,1737520232687,-500.0,0.00019999,2]
[349935037,1737520232696,-500.0,0.00019999,2]
[349935039,1737520232705,-812.88,0.00019999,2]
[349935041,1737520232715,-500.0,0.00019999,2]
[349935043,1737520232724,-670.82,0.00019999,2]
[349935044,1737520232733,-500.0,0.00019999,2]
[349935045,1737520232743,-500.0,0.00019999,2]
[349935046,1737520232752,-500.0,0.00019999,2]
[349935047,1737520232762,-579.45,0.00019999,2]
[349935048,1737520232771,-500.0,0.00019999,2]
[349935049,1737520232780,-500.0,0.00019999,2]
[349935050,1737520232789,-996.24,0.00019999,2]
[349935051,1737520232798,-3734.82,0.00019999,2]
[349935052,1737520232808,-500.0,0.00019999,2]
[349935053,1737520232817,-515.55711945,0.00019999,2]
[349935054,1737520232828,-500.0,0.00019999,2]
[349935055,1737520232837,-41780.06022446,0.0002,3]
[349935059,1737520237992,-433.73,0.00019271,2]
[349935060,1737520238004,-500.0,0.00019999,2]
[349935061,1737520238013,-500.0,0.00019999,2]
[349935062,1737520238023,-500.0,0.00019999,2]
[349935063,1737520238032,-1200.62,0.00019999,2]
[349935064,1737520238042,-500.0,0.00019999,2]
[349935065,1737520238052,-7376.49600907,0.0002,3]
[349935066,1737520238067,-1185.46874742,0.0002,3]
[349935067,1737520238079,-7620.0,0.0002,3]
[349935068,1737520238110,-42912.03224951,0.0002,3]
[349935069,1737520238220,-20623.99999999,0.0002,3]
[349935075,1737520239922,-500.0,0.00019999,2]
[349935076,1737520239933,-506.66440515,0.00019999,2]
[349935077,1737520239944,-1737.93559485,0.0002,3]
[349935078,1737520239984,-1210.18610939,0.0002,3]
[349935079,1737520240038,-348.62518254,0.00019999,2]
[349935080,1737520240048,-11.79172212,0.0002,3]
[349935081,1737520240095,-789.27438233,0.0002,3]
[349935082,1737520240107,-4385.44406825,0.0002,3]
[349935083,1737520240119,-3854.00000001,0.0002,3]
[349935084,1737520240232,-2771.23937551,0.0002,3]
[349935085,1737520240244,-1505.0418,0.0002,3]
[349935339,1737520242934,-1228.49761,0.000199,2]